[Event "Titled Tuesday Blitz June 6 Late 2023"]
[White "Lalanne, Pablo"]
[Black "Krishnakumar, Sriram"]
[WhiteFideId "112151"]
[BlackFideId "30915856"]
[WhiteElo "2120"]
[BlackElo "2494"]
[Result "1/2-1/2"]
[Round "10"]
[TimeControl "180+2"]
[Date "2023.06.07"]
[WhiteClock "0:00:21"]
[BlackClock "0:00:22"]
[Board "74"]

1. e4 {[%clk 0:03:00]}  e5 {[%clk 0:02:59]} 2. Nf3 {[%clk 0:03:00]}  Nc6 {[%clk 0:02:59]} 3. Bb5 {[%clk 0:03:01]}  a6 {[%clk 0:02:59]} 4. Ba4 {[%clk 0:03:01]}  Nf6 {[%clk 0:02:59]} 5. O-O {[%clk 0:03:01]}  b5 {[%clk 0:02:59]} 6. Bb3 {[%clk 0:03:01]}  Bc5 {[%clk 0:03:00]} 7. a4 {[%clk 0:03:00]}  Rb8 {[%clk 0:02:59]} 8. c3 {[%clk 0:03:00]}  d6 {[%clk 0:02:59]} 9. d4 {[%clk 0:02:59]}  Bb6 {[%clk 0:02:59]} 10. a5 {[%clk 0:02:59]}  Ba7 {[%clk 0:02:59]} 11. h3 {[%clk 0:02:59]}  h6 {[%clk 0:02:58]} 12. Be3 {[%clk 0:02:58]}  O-O {[%clk 0:02:55]} 13. Nbd2 {[%clk 0:02:57]}  Re8 {[%clk 0:02:48]} 14. Qc2 {[%clk 0:02:46]}  Bb7 {[%clk 0:02:33]} 15. d5 {[%clk 0:02:39]}  Bxe3 {[%clk 0:02:31]} 16. dxc6 {[%clk 0:02:35]}  Bxd2 {[%clk 0:02:30]} 17. cxb7 {[%clk 0:02:31]}  Bf4 {[%clk 0:02:13]} 18. g3 {[%clk 0:02:31]}  Rxb7 {[%clk 0:02:12]} 19. gxf4 {[%clk 0:02:29]}  exf4 {[%clk 0:02:13]} 20. Rfe1 {[%clk 0:02:24]}  c5 {[%clk 0:02:07]} 21. Qd2 {[%clk 0:02:23]}  c4 {[%clk 0:02:06]} 22. Bc2 {[%clk 0:02:23]}  Rbe7 {[%clk 0:02:05]} 23. Qxf4 {[%clk 0:02:22]}  Nh5 {[%clk 0:01:59]} 24. Qg4 {[%clk 0:02:18]}  Nf6 {[%clk 0:01:58]} 25. Qh4 {[%clk 0:02:16]}  Qa8 {[%clk 0:01:57]} 26. Rad1 {[%clk 0:01:57]}  Nxe4 {[%clk 0:01:50]} 27. Bxe4 {[%clk 0:01:56]}  Rxe4 {[%clk 0:01:51]} 28. Rxe4 {[%clk 0:01:55]}  Rxe4 {[%clk 0:01:51]} 29. Qg3 {[%clk 0:01:53]}  Re6 {[%clk 0:01:52]} 30. Rd4 {[%clk 0:01:44]}  h5 {[%clk 0:01:48]} 31. Qf4 {[%clk 0:01:35]}  Rf6 {[%clk 0:01:42]} 32. Qe4 {[%clk 0:01:28]}  Qxe4 {[%clk 0:01:39]} 33. Rxe4 {[%clk 0:01:29]}  Rxf3 {[%clk 0:01:39]} 34. Re8+ {[%clk 0:01:29]}  Kh7 {[%clk 0:01:39]} 35. Ra8 {[%clk 0:01:29]}  Rd3 {[%clk 0:01:18]} 36. Rxa6 {[%clk 0:01:28]}  Rd1+ {[%clk 0:01:19]} 37. Kg2 {[%clk 0:01:28]}  Ra1 {[%clk 0:01:19]} 38. Rxd6 {[%clk 0:01:09]}  Rxa5 {[%clk 0:01:18]} 39. h4 {[%clk 0:01:06]}  Ra2 {[%clk 0:01:15]} 40. Rd2 {[%clk 0:01:05]}  b4 {[%clk 0:01:04]} 41. cxb4 {[%clk 0:01:04]}  c3 {[%clk 0:01:04]} 42. Rd3 {[%clk 0:00:50]}  c2 {[%clk 0:00:42]} 43. Rc3 {[%clk 0:00:46]}  Rxb2 {[%clk 0:00:43]} 44. b5 {[%clk 0:00:45]}  g6 {[%clk 0:00:41]} 45. b6 {[%clk 0:00:45]}  Kg7 {[%clk 0:00:41]} 46. b7 {[%clk 0:00:45]}  Rxb7 {[%clk 0:00:41]} 47. Rxc2 {[%clk 0:00:45]}  Rb4 {[%clk 0:00:42]} 48. Kg3 {[%clk 0:00:45]}  Rg4+ {[%clk 0:00:43]} 49. Kh3 {[%clk 0:00:45]}  Rf4 {[%clk 0:00:42]} 50. Kg3 {[%clk 0:00:45]}  Rf5 {[%clk 0:00:43]} 51. f3 {[%clk 0:00:44]}  Ra5 {[%clk 0:00:42]} 52. Rc6 {[%clk 0:00:44]}  f6 {[%clk 0:00:42]} 53. Rc7+ {[%clk 0:00:42]}  Kh6 {[%clk 0:00:42]} 54. Rc6 {[%clk 0:00:42]}  Rf5 {[%clk 0:00:41]} 55. Ra6 {[%clk 0:00:41]}  Kh7 {[%clk 0:00:31]} 56. Ra7+ {[%clk 0:00:41]}  Kh6 {[%clk 0:00:31]} 57. Ra6 {[%clk 0:00:41]}  g5 {[%clk 0:00:31]} 58. hxg5+ {[%clk 0:00:41]}  Kxg5 {[%clk 0:00:32]} 59. Ra8 {[%clk 0:00:37]}  h4+ {[%clk 0:00:29]} 60. Kg2 {[%clk 0:00:37]}  Kf4 {[%clk 0:00:28]} 61. Ra4+ {[%clk 0:00:36]}  Kg5 {[%clk 0:00:28]} 62. Rg4+ {[%clk 0:00:37]}  Kh5 {[%clk 0:00:28]} 63. Ra4 {[%clk 0:00:36]}  h3+ {[%clk 0:00:19]} 64. Kxh3 {[%clk 0:00:35]}  Rxf3+ {[%clk 0:00:20]} 65. Kg2 {[%clk 0:00:35]}  Rf5 {[%clk 0:00:21]} 66. Kg3 {[%clk 0:00:34]}  Rg5+ {[%clk 0:00:21]} 67. Kf3 {[%clk 0:00:34]}  Rb5 {[%clk 0:00:21]} 68. Rc4 {[%clk 0:00:29]}  Kg5 {[%clk 0:00:21]} 69. Ra4 {[%clk 0:00:27]}  Rb3+ {[%clk 0:00:20]} 70. Kf2 {[%clk 0:00:27]}  f5 {[%clk 0:00:20]} 71. Rc4 {[%clk 0:00:26]}  f4 {[%clk 0:00:20]} 72. Rc8 {[%clk 0:00:20]}  Rb2+ {[%clk 0:00:21]} 73. Kf3 {[%clk 0:00:20]}  Rb3+ {[%clk 0:00:21]} 74. Kf2 {[%clk 0:00:20]}  Kg4 {[%clk 0:00:22]} 75. Rg8+ {[%clk 0:00:20]}  Kf5 {[%clk 0:00:22]} 76. Rf8+ {[%clk 0:00:20]}  Ke4 {[%clk 0:00:23]} 77. Re8+ {[%clk 0:00:20]}  Kd4 {[%clk 0:00:23]} 78. Rd8+ {[%clk 0:00:21]}  Ke5 {[%clk 0:00:24]} 79. Re8+ {[%clk 0:00:21]}  Kd6 {[%clk 0:00:24]} 80. Rf8 {[%clk 0:00:21]}  Ke5 {[%clk 0:00:22]} 81. Re8+ {[%clk 0:00:21]}  Kd4 {[%clk 0:00:22]} 82. Rd8+ {[%clk 0:00:21]}  Kc4 {[%clk 0:00:21]} 83. Rf8 {[%clk 0:00:21]}  f3 {[%clk 0:00:21]} 84. Rxf3 {[%clk 0:00:21]}  Rxf3+ {[%clk 0:00:22]} 85. Kxf3 {[%clk 0:00:21]} 1/2-1/2


[Site "https://www.chess.com"]

[Event "Titled Tuesday Blitz June 6 Late 2023"]
[White "Pasti, Aron"]
[Black "Romero Ruscalleda, Josep"]
[WhiteFideId "785857"]
[BlackFideId "2231859"]
[WhiteElo "2173"]
[BlackElo "2183"]
[Result "1-0"]
[Round "10"]
[TimeControl "180+2"]
[Date "2023.06.07"]
[WhiteClock "0:00:25"]
[BlackClock "0:00:18"]
[Board "75"]

1. e4 {[%clk 0:02:55]}  g6 {[%clk 0:02:59]} 2. d4 {[%clk 0:02:55]}  Bg7 {[%clk 0:02:59]} 3. Nc3 {[%clk 0:02:49]}  d6 {[%clk 0:02:59]} 4. f4 {[%clk 0:02:49]}  a6 {[%clk 0:02:59]} 5. Nf3 {[%clk 0:02:49]}  b5 {[%clk 0:02:58]} 6. a4 {[%clk 0:02:48]}  b4 {[%clk 0:02:58]} 7. Nd5 {[%clk 0:02:48]}  Bb7 {[%clk 0:02:58]} 8. Bd3 {[%clk 0:02:43]}  Nf6 {[%clk 0:02:57]} 9. Nxf6+ {[%clk 0:02:38]}  Bxf6 {[%clk 0:02:57]} 10. Be3 {[%clk 0:02:33]}  Nd7 {[%clk 0:02:55]} 11. e5 {[%clk 0:02:31]}  Bg7 {[%clk 0:02:56]} 12. h4 {[%clk 0:02:29]}  h5 {[%clk 0:02:41]} 13. e6 {[%clk 0:02:29]}  Nf8 {[%clk 0:02:40]} 14. exf7+ {[%clk 0:02:18]}  Kxf7 {[%clk 0:02:40]} 15. Ng5+ {[%clk 0:02:18]}  Kg8 {[%clk 0:02:38]} 16. O-O {[%clk 0:02:07]}  Bf6 {[%clk 0:02:36]} 17. f5 {[%clk 0:02:06]}  Kg7 {[%clk 0:02:28]} 18. fxg6 {[%clk 0:01:53]}  Qd7 {[%clk 0:02:18]} 19. Nf7 {[%clk 0:01:44]}  Nxg6 {[%clk 0:01:51]} 20. Nxh8 {[%clk 0:01:35]}  Rxh8 {[%clk 0:01:50]} 21. Bxg6 {[%clk 0:01:19]}  Kxg6 {[%clk 0:01:50]} 22. d5 {[%clk 0:01:20]}  Bxh4 {[%clk 0:01:25]} 23. Qd3+ {[%clk 0:01:14]}  Kg7 {[%clk 0:01:25]} 24. Bd4+ {[%clk 0:01:11]}  Bf6 {[%clk 0:01:25]} 25. Rxf6 {[%clk 0:01:07]}  exf6 {[%clk 0:01:25]} 26. Bxf6+ {[%clk 0:01:07]}  Kxf6 {[%clk 0:01:21]} 27. Qd4+ {[%clk 0:01:06]}  Kg6 {[%clk 0:00:58]} 28. Qxh8 {[%clk 0:01:03]}  Bxd5 {[%clk 0:00:58]} 29. Rf1 {[%clk 0:01:03]}  Bxg2 {[%clk 0:00:34]} 30. Rf6+ {[%clk 0:00:26]}  Kg5 {[%clk 0:00:30]} 31. Qh6+ {[%clk 0:00:26]}  Kh4 {[%clk 0:00:22]} 32. Rf4+ {[%clk 0:00:25]}  Kh3 {[%clk 0:00:18]} 33. Qxh5+ {[%clk 0:00:24]}  Kg3 {[%clk 0:00:18]} 34. Qh4# {[%clk 0:00:25]} 1-0


[Site "https://www.chess.com"]

[Event "Titled Tuesday Blitz June 6 Late 2023"]
[White "Ismayil, Malak"]
[Black "Prydun, Andriy"]
[WhiteFideId "13412604"]
[BlackFideId "14145898"]
[WhiteElo "1868"]
[BlackElo "2164"]
[Result "1/2-1/2"]
[Round "10"]
[TimeControl "180+2"]
[Date "2023.06.07"]
[WhiteClock "0:01:17"]
[BlackClock "0:00:31"]
[Board "76"]

1. e4 {[%clk 0:03:00]}  c5 {[%clk 0:02:59]} 2. Nf3 {[%clk 0:03:00]}  g6 {[%clk 0:02:59]} 3. d4 {[%clk 0:02:57]}  cxd4 {[%clk 0:02:58]} 4. Qxd4 {[%clk 0:02:58]}  Nf6 {[%clk 0:02:55]} 5. e5 {[%clk 0:02:58]}  Nc6 {[%clk 0:02:55]} 6. Qh4 {[%clk 0:02:55]}  Nh5 {[%clk 0:02:52]} 7. Nc3 {[%clk 0:02:48]}  Ng7 {[%clk 0:02:51]} 8. Bg5 {[%clk 0:02:46]}  Ne6 {[%clk 0:02:50]} 9. Bh6 {[%clk 0:02:42]}  Qa5 {[%clk 0:02:49]} 10. Bxf8 {[%clk 0:02:40]}  Kxf8 {[%clk 0:02:23]} 11. Qe4 {[%clk 0:02:29]}  Qb4 {[%clk 0:01:51]} 12. Qxb4 {[%clk 0:02:27]}  Nxb4 {[%clk 0:01:52]} 13. O-O-O {[%clk 0:02:27]}  a6 {[%clk 0:01:51]} 14. a3 {[%clk 0:02:26]}  Nc6 {[%clk 0:01:50]} 15. Nd5 {[%clk 0:02:26]}  Kg7 {[%clk 0:01:39]} 16. Nb6 {[%clk 0:02:25]}  Rb8 {[%clk 0:01:39]} 17. Nxd7 {[%clk 0:02:24]}  Bxd7 {[%clk 0:01:38]} 18. Rxd7 {[%clk 0:02:25]}  Rhd8 {[%clk 0:01:35]} 19. Rxd8 {[%clk 0:02:22]}  Rxd8 {[%clk 0:01:36]} 20. Bc4 {[%clk 0:02:19]}  Ned4 {[%clk 0:01:35]} 21. Re1 {[%clk 0:02:08]}  Nxf3 {[%clk 0:01:34]} 22. gxf3 {[%clk 0:02:09]}  e6 {[%clk 0:01:33]} 23. c3 {[%clk 0:02:03]}  Kh6 {[%clk 0:01:29]} 24. f4 {[%clk 0:02:01]}  Kh5 {[%clk 0:01:18]} 25. Be2+ {[%clk 0:02:01]}  Kh4 {[%clk 0:01:18]} 26. Kc2 {[%clk 0:02:00]}  Kh3 {[%clk 0:01:16]} 27. Bf3 {[%clk 0:02:01]}  h5 {[%clk 0:01:11]} 28. Re3 {[%clk 0:01:55]}  Kh4 {[%clk 0:01:02]} 29. Be2 {[%clk 0:01:43]}  Rd7 {[%clk 0:00:59]} 30. b4 {[%clk 0:01:42]}  Ne7 {[%clk 0:00:58]} 31. Bf3 {[%clk 0:01:33]}  Rc7 {[%clk 0:00:49]} 32. Re4 {[%clk 0:01:29]}  Kh3 {[%clk 0:00:45]} 33. Re3 {[%clk 0:01:25]}  Kh4 {[%clk 0:00:42]} 34. Kb3 {[%clk 0:01:19]}  Rd7 {[%clk 0:00:32]} 35. Kc2 {[%clk 0:01:17]}  Rc7 {[%clk 0:00:31]} 1/2-1/2


[Site "https://www.chess.com"]

[Event "Titled Tuesday Blitz June 6 Late 2023"]
[White "Olsson, William"]
[Black "Rios Escobar, Adan"]
[WhiteFideId "1741721"]
[BlackFideId "3403645"]
[WhiteElo "2197"]
[BlackElo "2461"]
[Result "0-1"]
[Round "10"]
[TimeControl "180+2"]
[Date "2023.06.07"]
[WhiteClock "0:00:08"]
[BlackClock "0:00:05"]
[Board "77"]

1. c4 {[%clk 0:02:22]}  Nf6 {[%clk 0:02:59]} 2. g3 {[%clk 0:02:22]}  g6 {[%clk 0:02:56]} 3. Bg2 {[%clk 0:02:22]}  Bg7 {[%clk 0:02:56]} 4. Nc3 {[%clk 0:02:23]}  c5 {[%clk 0:02:51]} 5. a3 {[%clk 0:02:22]}  d6 {[%clk 0:02:52]} 6. b4 {[%clk 0:02:21]}  Nc6 {[%clk 0:02:38]} 7. Rb1 {[%clk 0:02:11]}  O-O {[%clk 0:02:33]} 8. Nf3 {[%clk 0:02:10]}  h6 {[%clk 0:02:24]} 9. O-O {[%clk 0:02:09]}  Be6 {[%clk 0:02:25]} 10. d3 {[%clk 0:02:03]}  Qd7 {[%clk 0:02:25]} 11. Re1 {[%clk 0:02:00]}  b6 {[%clk 0:02:25]} 12. Nd2 {[%clk 0:01:51]}  Rac8 {[%clk 0:02:24]} 13. Qb3 {[%clk 0:01:42]}  Nd4 {[%clk 0:02:22]} 14. Qa2 {[%clk 0:01:39]}  Ng4 {[%clk 0:02:16]} 15. bxc5 {[%clk 0:01:33]}  dxc5 {[%clk 0:02:09]} 16. h3 {[%clk 0:01:20]}  Ne5 {[%clk 0:02:04]} 17. Kh2 {[%clk 0:01:16]}  h5 {[%clk 0:01:52]} 18. a4 {[%clk 0:01:13]}  h4 {[%clk 0:01:52]} 19. a5 {[%clk 0:01:01]}  hxg3+ {[%clk 0:01:52]} 20. fxg3 {[%clk 0:01:01]}  Nf5 {[%clk 0:01:48]} 21. Nde4 {[%clk 0:00:57]}  Nc6 {[%clk 0:01:37]} 22. axb6 {[%clk 0:00:55]}  axb6 {[%clk 0:01:36]} 23. Bf4 {[%clk 0:00:51]}  Nb4 {[%clk 0:01:35]} 24. Qa4 {[%clk 0:00:44]}  Qd8 {[%clk 0:01:21]} 25. Qb3 {[%clk 0:00:25]}  Nd4 {[%clk 0:01:16]} 26. Qd1 {[%clk 0:00:25]}  Bd7 {[%clk 0:00:56]} 27. Rf1 {[%clk 0:00:25]}  Bc6 {[%clk 0:00:56]} 28. e3 {[%clk 0:00:15]}  Ne6 {[%clk 0:00:54]} 29. Nb5 {[%clk 0:00:12]}  Nxf4 {[%clk 0:00:47]} 30. Rxf4 {[%clk 0:00:12]}  Qxd3 {[%clk 0:00:44]} 31. Qxd3 {[%clk 0:00:06]}  Nxd3 {[%clk 0:00:45]} 32. Na7 {[%clk 0:00:05]}  Nxf4 {[%clk 0:00:41]} 33. Nxc8 {[%clk 0:00:06]}  Rxc8 {[%clk 0:00:26]} 34. gxf4 {[%clk 0:00:04]}  f5 {[%clk 0:00:16]} 35. Ng5 {[%clk 0:00:03]}  Bxg2 {[%clk 0:00:16]} 36. Kxg2 {[%clk 0:00:04]}  Rc6 {[%clk 0:00:16]} 37. Kf3 {[%clk 0:00:04]}  Bf6 {[%clk 0:00:16]} 38. h4 {[%clk 0:00:05]}  Bxg5 {[%clk 0:00:16]} 39. hxg5 {[%clk 0:00:06]}  Kf7 {[%clk 0:00:16]} 40. e4 {[%clk 0:00:05]}  Rd6 {[%clk 0:00:11]} 41. Ke3 {[%clk 0:00:04]}  fxe4 {[%clk 0:00:09]} 42. Kxe4 {[%clk 0:00:05]}  Rd4+ {[%clk 0:00:10]} 43. Ke5 {[%clk 0:00:05]}  Rxc4 {[%clk 0:00:04]} 44. Rxb6 {[%clk 0:00:05]}  Rc1 {[%clk 0:00:04]} 45. Rc6 {[%clk 0:00:04]}  c4 {[%clk 0:00:03]} 46. Kd4 {[%clk 0:00:03]}  c3 {[%clk 0:00:02]} 47. Ke3 {[%clk 0:00:02]}  c2 {[%clk 0:00:02]} 48. Kd2 {[%clk 0:00:02]}  Rf1 {[%clk 0:00:02]} 49. Kxc2 {[%clk 0:00:01]}  Rxf4 {[%clk 0:00:02]} 50. Rc5 {[%clk 0:00:01]}  Rf5 {[%clk 0:00:03]} 51. Rc6 {[%clk 0:00:01]}  Rxg5 {[%clk 0:00:03]} 52. Kd3 {[%clk 0:00:02]}  Re5 {[%clk 0:00:04]} 53. Kd4 {[%clk 0:00:02]}  Re6 {[%clk 0:00:04]} 54. Rc5 {[%clk 0:00:02]}  Kf6 {[%clk 0:00:04]} 55. Kd3 {[%clk 0:00:02]}  Re1 {[%clk 0:00:04]} 56. Kd4 {[%clk 0:00:03]}  e6 {[%clk 0:00:05]} 57. Rc6 {[%clk 0:00:04]}  g5 {[%clk 0:00:05]} 58. Kd3 {[%clk 0:00:04]}  g4 {[%clk 0:00:05]} 59. Kd2 {[%clk 0:00:05]}  Re5 {[%clk 0:00:05]} 60. Rc4 {[%clk 0:00:05]}  Kf5 {[%clk 0:00:06]} 61. Kd3 {[%clk 0:00:05]}  g3 {[%clk 0:00:05]} 62. Kd2 {[%clk 0:00:06]}  Re4 {[%clk 0:00:06]} 63. Kd3 {[%clk 0:00:07]}  Rxc4 {[%clk 0:00:05]} 64. Kd2 {[%clk 0:00:08]} 0-1


[Site "https://www.chess.com"]

[Event "Titled Tuesday Blitz June 6 Late 2023"]
[White "Rodriguez Santiago, Jaime"]
[Black "Kovalevsky, Stanislav"]
[WhiteFideId "3100898"]
[BlackFideId "13508598"]
[WhiteElo "2025"]
[BlackElo "2112"]
[Result "0-1"]
[Round "10"]
[TimeControl "180+2"]
[Date "2023.06.07"]
[WhiteClock "0:00:40"]
[BlackClock "0:00:54"]
[Board "79"]

1. c4 {[%clk 0:03:00]}  e6 {[%clk 0:02:44]} 2. d4 {[%clk 0:02:59]}  d5 {[%clk 0:02:45]} 3. Nc3 {[%clk 0:02:58]}  Nf6 {[%clk 0:02:45]} 4. cxd5 {[%clk 0:02:59]}  exd5 {[%clk 0:02:46]} 5. Bg5 {[%clk 0:02:59]}  c6 {[%clk 0:02:46]} 6. e3 {[%clk 0:02:58]}  Be7 {[%clk 0:02:46]} 7. Qc2 {[%clk 0:02:50]}  Nbd7 {[%clk 0:02:45]} 8. Bd3 {[%clk 0:02:49]}  Nf8 {[%clk 0:02:45]} 9. Nge2 {[%clk 0:02:48]}  h6 {[%clk 0:02:38]} 10. Bh4 {[%clk 0:02:47]}  Ne6 {[%clk 0:02:34]} 11. O-O {[%clk 0:02:45]}  h5 {[%clk 0:02:28]} 12. f3 {[%clk 0:02:35]}  g5 {[%clk 0:02:27]} 13. Bf2 {[%clk 0:02:32]}  Bd7 {[%clk 0:02:25]} 14. e4 {[%clk 0:02:29]}  h4 {[%clk 0:02:22]} 15. e5 {[%clk 0:02:22]}  Nh5 {[%clk 0:02:21]} 16. Be3 {[%clk 0:02:20]}  Nef4 {[%clk 0:02:07]} 17. Bxf4 {[%clk 0:02:09]}  Nxf4 {[%clk 0:02:08]} 18. Nxf4 {[%clk 0:02:09]}  gxf4 {[%clk 0:02:09]} 19. Bf5 {[%clk 0:02:08]}  Qc8 {[%clk 0:02:06]} 20. Bxd7+ {[%clk 0:02:00]}  Qxd7 {[%clk 0:02:07]} 21. Rae1 {[%clk 0:01:57]}  h3 {[%clk 0:02:00]} 22. e6 {[%clk 0:01:54]}  fxe6 {[%clk 0:01:51]} 23. Qg6+ {[%clk 0:01:54]}  Kd8 {[%clk 0:01:51]} 24. Rxe6 {[%clk 0:01:51]}  Kc7 {[%clk 0:01:48]} 25. Rfe1 {[%clk 0:01:50]}  Bh4 {[%clk 0:01:25]} 26. R1e2 {[%clk 0:01:44]}  Rag8 {[%clk 0:01:21]} 27. Qc2 {[%clk 0:01:44]}  hxg2 {[%clk 0:01:19]} 28. Na4 {[%clk 0:01:02]}  Bf2+ {[%clk 0:01:16]} 29. Rxf2 {[%clk 0:00:48]}  Qxe6 {[%clk 0:01:16]} 30. Qd2 {[%clk 0:00:48]}  Qh6 {[%clk 0:00:54]} 31. Rxg2 {[%clk 0:00:40]}  Qxh2+ {[%clk 0:00:54]} 0-1


[Site "https://www.chess.com"]

[Event "Titled Tuesday Blitz June 6 Late 2023"]
[White "Weisz, Bryan"]
[Black "Garcia Cuenca, Victor"]
[WhiteFideId "30934133"]
[BlackFideId "2250829"]
[WhiteElo "2331"]
[BlackElo "2329"]
[Result "0-1"]
[Round "10"]
[TimeControl "180+2"]
[Date "2023.06.07"]
[WhiteClock "0:00:01"]
[BlackClock "0:00:09"]
[Board "80"]

1. d4 {[%clk 0:02:59]}  Nf6 {[%clk 0:02:59]} 2. c4 {[%clk 0:02:58]}  c5 {[%clk 0:03:00]} 3. d5 {[%clk 0:02:58]}  b5 {[%clk 0:02:59]} 4. cxb5 {[%clk 0:02:58]}  a6 {[%clk 0:03:00]} 5. f3 {[%clk 0:02:51]}  e6 {[%clk 0:02:55]} 6. e4 {[%clk 0:02:38]}  c4 {[%clk 0:02:52]} 7. Bxc4 {[%clk 0:02:27]}  axb5 {[%clk 0:02:50]} 8. Bb3 {[%clk 0:02:24]}  Bc5 {[%clk 0:02:50]} 9. Ne2 {[%clk 0:02:21]}  Qb6 {[%clk 0:02:34]} 10. Nbc3 {[%clk 0:02:01]}  O-O {[%clk 0:02:18]} 11. Bg5 {[%clk 0:01:53]}  d6 {[%clk 0:01:42]} 12. Qd2 {[%clk 0:01:38]}  e5 {[%clk 0:01:28]} 13. O-O-O {[%clk 0:01:12]}  h6 {[%clk 0:01:24]} 14. Kb1 {[%clk 0:00:58]}  hxg5 {[%clk 0:01:23]} 15. Qxg5 {[%clk 0:00:52]}  Nbd7 {[%clk 0:01:15]} 16. Ng3 {[%clk 0:00:50]}  Nh7 {[%clk 0:01:13]} 17. Qh4 {[%clk 0:00:49]}  Be3 {[%clk 0:01:05]} 18. Nf5 {[%clk 0:00:49]}  Bg5 {[%clk 0:01:03]} 19. Qg3 {[%clk 0:00:40]}  g6 {[%clk 0:01:01]} 20. h4 {[%clk 0:00:38]}  Bf4 {[%clk 0:01:00]} 21. Ne7+ {[%clk 0:00:31]}  Kh8 {[%clk 0:00:59]} 22. Qe1 {[%clk 0:00:30]}  Nc5 {[%clk 0:00:53]} 23. h5 {[%clk 0:00:25]}  g5 {[%clk 0:00:39]} 24. Bc2 {[%clk 0:00:18]}  b4 {[%clk 0:00:36]} 25. Na4 {[%clk 0:00:16]}  Nxa4 {[%clk 0:00:34]} 26. Bxa4 {[%clk 0:00:15]}  Rxa4 {[%clk 0:00:29]} 27. Ng6+ {[%clk 0:00:14]}  Kg7 {[%clk 0:00:26]} 28. Nxf8 {[%clk 0:00:14]}  Nxf8 {[%clk 0:00:25]} 29. g3 {[%clk 0:00:12]}  Be3 {[%clk 0:00:25]} 30. f4 {[%clk 0:00:13]}  exf4 {[%clk 0:00:24]} 31. gxf4 {[%clk 0:00:13]}  Bxf4 {[%clk 0:00:25]} 32. e5 {[%clk 0:00:11]}  Bxe5 {[%clk 0:00:23]} 33. h6+ {[%clk 0:00:11]}  Kg6 {[%clk 0:00:20]} 34. Rf1 {[%clk 0:00:06]}  f5 {[%clk 0:00:18]} 35. Qe2 {[%clk 0:00:05]}  f4 {[%clk 0:00:16]} 36. h7 {[%clk 0:00:03]}  Bf5+ {[%clk 0:00:16]} 37. Ka1 {[%clk 0:00:03]}  Nxh7 {[%clk 0:00:14]} 38. Rh1 {[%clk 0:00:02]}  Nf6 {[%clk 0:00:13]} 39. Rh8 {[%clk 0:00:01]}  Qa7 {[%clk 0:00:11]} 40. a3 {[%clk 0:00:01]}  Rxa3# {[%clk 0:00:09]} 0-1


[Site "https://www.chess.com"]

[Event "Titled Tuesday Blitz June 6 Late 2023"]
[White "Cagara, Paulina"]
[Black "Herman, Daniel"]
[WhiteFideId "1124870"]
[BlackFideId "30935008"]
[WhiteElo "1967"]
[BlackElo "1897"]
[Result "0-1"]
[Round "10"]
[TimeControl "180+2"]
[Date "2023.06.07"]
[WhiteClock "0:01:30"]
[BlackClock "0:01:35"]
[Board "81"]

1. e4 {[%clk 0:03:00]}  e5 {[%clk 0:02:59]} 2. Nf3 {[%clk 0:03:00]}  Nc6 {[%clk 0:02:59]} 3. c3 {[%clk 0:03:00]}  Nf6 {[%clk 0:02:55]} 4. d4 {[%clk 0:02:59]}  Nxe4 {[%clk 0:02:55]} 5. d5 {[%clk 0:02:59]}  Bc5 {[%clk 0:02:55]} 6. dxc6 {[%clk 0:02:58]}  Bxf2+ {[%clk 0:02:51]} 7. Ke2 {[%clk 0:02:57]}  bxc6 {[%clk 0:02:41]} 8. Qd3 {[%clk 0:02:40]}  d5 {[%clk 0:02:26]} 9. Be3 {[%clk 0:02:39]}  Bxe3 {[%clk 0:02:21]} 10. Qxe3 {[%clk 0:02:33]}  O-O {[%clk 0:02:17]} 11. Nbd2 {[%clk 0:02:31]}  f5 {[%clk 0:02:11]} 12. Nxe4 {[%clk 0:02:22]}  fxe4 {[%clk 0:02:09]} 13. Nxe5 {[%clk 0:02:21]}  Qf6 {[%clk 0:02:07]} 14. Kd2 {[%clk 0:02:08]}  Qxe5 {[%clk 0:02:06]} 15. Be2 {[%clk 0:02:06]}  Rb8 {[%clk 0:02:05]} 16. Rab1 {[%clk 0:02:04]}  Be6 {[%clk 0:01:42]} 17. Qd4 {[%clk 0:01:58]}  Qd6 {[%clk 0:01:41]} 18. Rhf1 {[%clk 0:01:51]}  Rxf1 {[%clk 0:01:37]} 19. Bxf1 {[%clk 0:01:50]}  c5 {[%clk 0:01:37]} 20. Qf2 {[%clk 0:01:38]}  d4 {[%clk 0:01:34]} 21. cxd4 {[%clk 0:01:35]}  cxd4 {[%clk 0:01:35]} 22. b3 {[%clk 0:01:30]}  e3+ {[%clk 0:01:35]} 0-1


[Site "https://www.chess.com"]

[Event "Titled Tuesday Blitz June 6 Late 2023"]
[White "Pavlidou, Ekaterini"]
[Black "Srdanovic, Jovana"]
[WhiteFideId "4213262"]
[BlackFideId "954810"]
[WhiteElo "2126"]
[BlackElo "2155"]
[Result "1-0"]
[Round "10"]
[TimeControl "180+2"]
[Date "2023.06.07"]
[WhiteClock "0:01:44"]
[BlackClock "0:01:25"]
[Board "84"]

1. d4 {[%clk 0:02:59]}  d5 {[%clk 0:02:54]} 2. c4 {[%clk 0:02:59]}  c6 {[%clk 0:02:54]} 3. Nf3 {[%clk 0:02:58]}  Nf6 {[%clk 0:02:54]} 4. cxd5 {[%clk 0:02:56]}  cxd5 {[%clk 0:02:53]} 5. Bf4 {[%clk 0:02:56]}  Nc6 {[%clk 0:02:51]} 6. Nc3 {[%clk 0:02:55]}  Bf5 {[%clk 0:02:50]} 7. Qb3 {[%clk 0:02:52]}  Na5 {[%clk 0:02:46]} 8. Qa4+ {[%clk 0:02:50]}  Bd7 {[%clk 0:02:46]} 9. Qc2 {[%clk 0:02:50]}  e6 {[%clk 0:02:45]} 10. e3 {[%clk 0:02:50]}  Bb4 {[%clk 0:02:41]} 11. a3 {[%clk 0:02:46]}  Bxc3+ {[%clk 0:02:41]} 12. Qxc3 {[%clk 0:02:45]}  O-O {[%clk 0:02:36]} 13. Bc7 {[%clk 0:02:42]}  Ne4 {[%clk 0:02:19]} 14. Bxd8 {[%clk 0:02:40]}  Nxc3 {[%clk 0:02:19]} 15. Bxa5 {[%clk 0:02:40]}  Ne4 {[%clk 0:02:19]} 16. Ne5 {[%clk 0:02:38]}  Bc8 {[%clk 0:02:14]} 17. f3 {[%clk 0:02:38]}  Nf6 {[%clk 0:02:04]} 18. Bb4 {[%clk 0:02:37]}  Rd8 {[%clk 0:02:03]} 19. Be7 {[%clk 0:02:33]}  Re8 {[%clk 0:02:02]} 20. Bxf6 {[%clk 0:02:25]}  gxf6 {[%clk 0:02:03]} 21. Ng4 {[%clk 0:02:19]}  Kg7 {[%clk 0:02:02]} 22. Bb5 {[%clk 0:02:16]}  Rd8 {[%clk 0:02:01]} 23. Rc1 {[%clk 0:02:15]}  a6 {[%clk 0:02:01]} 24. Ba4 {[%clk 0:02:14]}  h5 {[%clk 0:01:59]} 25. Nf2 {[%clk 0:02:13]}  e5 {[%clk 0:01:59]} 26. Rc7 {[%clk 0:02:11]}  b5 {[%clk 0:01:56]} 27. Bb3 {[%clk 0:02:10]}  Be6 {[%clk 0:01:56]} 28. Nd3 {[%clk 0:02:07]}  exd4 {[%clk 0:01:50]} 29. exd4 {[%clk 0:02:06]}  Bf5 {[%clk 0:01:48]} 30. Kd2 {[%clk 0:02:04]}  a5 {[%clk 0:01:42]} 31. Nf4 {[%clk 0:02:00]}  a4 {[%clk 0:01:40]} 32. Bxd5 {[%clk 0:02:00]}  Kh6 {[%clk 0:01:31]} 33. Rxf7 {[%clk 0:01:55]}  Bg6 {[%clk 0:01:27]} 34. Rxf6 {[%clk 0:01:53]}  Kg5 {[%clk 0:01:25]} 35. Rxg6+ {[%clk 0:01:48]}  Kxf4 {[%clk 0:01:25]} 36. g3+ {[%clk 0:01:44]}  Kf5 {[%clk 0:01:25]} 37. Be4# {[%clk 0:01:44]} 1-0


[Site "https://www.chess.com"]